fUST/lending_fUST_20251128
["ID","MTS","AMOUNT","RATE_DAILY","PERIOD"]
[394998885,1764285033600,-500.0,0.00010959,2]
[394998886,1764285033610,-500.0,0.00010959,2]
[394998887,1764285033619,-500.0,0.00010959,2]
[394998888,1764285033629,-500.0,0.00010959,2]
[394998889,1764285033638,-500.0,0.00010959,2]
[394998890,1764285033647,-500.0,0.00010959,2]
[394998891,1764285033656,-500.0,0.00010959,2]
[394998892,1764285033668,-291.15113055,0.00010959,2]
[394998893,1764285033677,-612.45898636,0.00010959,2]
[394998894,1764285033686,-500.0,0.00010959,2]
[394998895,1764285033695,-500.0,0.00010959,2]
[394998896,1764285033704,-500.0,0.00010959,2]
[394998897,1764285033714,-500.0,0.00010959,2]
[394998898,1764285033722,-500.0,0.00010959,2]
[394998899,1764285033731,-500.0,0.00010959,2]
[394998900,1764285033741,-500.0,0.00010959,2]
[394998901,1764285033750,-500.0,0.00010959,2]
[394998902,1764285033759,-500.0,0.00010959,2]
[394998903,1764285033768,-327.17868018,0.00010959,2]
[394998904,1764285033777,-500.0,0.00010959,2]
[394998905,1764285033786,-500.0,0.00010959,2]
[394998906,1764285033795,-250.0,0.00010959,2]
[394998907,1764285033804,-500.0,0.00011068,2]
[394998908,1764285033813,-2500.0,0.00011072,2]
[394998909,1764285033822,-864.0,0.00011299,2]
[394998910,1764285033832,-523.53108358,0.00011316,2]
[394998911,1764285033841,-1421.97760535,0.0001134,2]
[394998912,1764285033851,-500.0,0.00011342,2]
[394998913,1764285033860,-250.0,0.00011611,2]
[394998914,1764285033870,-500.0,0.00011616,2]
[394998915,1764285033880,-3000.0,0.0001162,2]
[394998916,1764285033889,-1423.39958296,0.00011813,2]
[394998917,1764285033899,-500.0,0.0001189,2]
[394998918,1764285033908,-295.724,0.00011929,2]
[394998919,1764285033918,-150.069,0.00011929,2]
[394998920,1764285033927,-353.54508592,0.00012154,2]
[394998921,1764285033936,-500.0,0.00012164,2]
[394998922,1764285033945,-2000.0,0.00012168,2]
[394998923,1764285033955,-1000.0,0.00012429,2]
[394998924,1764285033965,-462.90605611,0.00012438,2]
[394998925,1764285033974,-150.106,0.0001271,2]
[394998926,1764285033983,-150.0,0.0001271,2]
[394998927,1764285033992,-150.054,0.0001271,2]
[394998928,1764285034002,-630.0,0.0001271,2]
[394998929,1764285034010,-2152.0,0.0001271,2]
[394998930,1764285034020,-990.0,0.0001271,2]
[394998931,1764285034029,-414.0,0.0001271,2]
[394998932,1764285034038,-204.0,0.00012876,2]
[394998933,1764285034048,-7103.07624853,0.00013,2]
[394998934,1764285034058,-1000.0,0.00013672,2]
[394998935,1764285034068,-244.0,0.00013672,2]
[394998936,1764285034077,-1000.0,0.00013698,2]
[394998937,1764285034088,-1000.0,0.00013698,2]
[394998938,1764285034098,-1000.0,0.00013698,2]
[394998939,1764285034108,-1000.0,0.00013698,2]
[394998940,1764285034116,-1127.03146146,0.00013698,2]
[394998941,1764285034125,-784.189146,0.00013699,2]
[394998942,1764285034137,-1000.0,0.00013699,2]
[394998943,1764285034147,-212.62216923,0.00014837,2]
[394998944,1764285034155,-231.0,0.00014876,2]
[394998945,1764285034165,-1000.0,0.00015039,2]
[394998946,1764285034174,-492.0,0.00015039,2]
[394998947,1764285034183,-150.0,0.0001571,2]
[394998948,1764285034194,-414.0,0.0001571,2]
[394998949,1764285034205,-500.0,0.00016438,2]
[394998950,1764285034216,-1000.0,0.00016543,2]
[394998951,1764285034225,-791.0,0.00016543,2]
[394998952,1764285034235,-258.0,0.00016876,2]
[394998953,1764285034245,-500.0,0.00017534,2]
[394998954,1764285034255,-212.62216923,0.000178,3]
[394998955,1764285034265,-1000.0,0.00017946,2]
[394998956,1764285034275,-1000.0,0.00017946,2]
[394998957,1764285034285,-1000.0,0.00017946,2]
[394998958,1764285034295,-1000.0,0.00017946,2]
[394998959,1764285034304,-1000.0,0.00017946,2]
[394998960,1764285034314,-1000.0,0.00017946,2]
[394998961,1764285034324,-1000.0,0.00017946,2]
[394998962,1764285034335,-1000.0,0.00017946,2]
[394998963,1764285034344,-1000.0,0.00017946,2]
[394998964,1764285034357,-1000.0,0.00017946,2]
[394998965,1764285034368,-1000.0,0.00017946,2]
[394998966,1764285034377,-1000.0,0.00017946,2]
[394998967,1764285034388,-1000.0,0.00017946,2]
[394998968,1764285034397,-151.0,0.00017946,2]
[394998969,1764285034406,-1000.0,0.00017946,2]
[394998970,1764285034415,-305.87107888,0.00017946,2]
[394998971,1764285034424,-1000.0,0.00017946,2]
[394998972,1764285034434,-1000.0,0.00017946,2]
[394998973,1764285034443,-1000.0,0.00017946,2]
[394998974,1764285034453,-1000.0,0.00017946,2]
[394998975,1764285034462,-1000.0,0.00017946,2]
[394998976,1764285034471,-1116.37455399,0.00017946,2]
[394998977,1764285034481,-1000.0,0.00018197,2]
[394998978,1764285034490,-1000.0,0.00018197,2]
[394998979,1764285034499,-500.0,0.0001863,2]
[394998980,1764285034508,-414.0,0.0001871,2]
[394998981,1764285034517,-212.62216923,0.00018818,2]
[394998982,1764285034526,-285.0,0.00018876,2]
[394998983,1764285034535,-500.0,0.00019178,2]
[394998984,1764285034544,-500.0,0.00019178,2]
[394998985,1764285034554,-500.0,0.00019178,2]
[394998986,1764285034563,-500.0,0.00019178,2]
[394998987,1764285034573,-500.0,0.00019178,2]
[394998988,1764285034582,-500.0,0.00019178,2]
[394998989,1764285034591,-500.0,0.00019178,2]
[394998990,1764285034601,-500.0,0.00019178,2]
[394998991,1764285034610,-500.0,0.00019178,2]
[394998992,1764285034620,-526.96332469,0.00019178,2]
[394998993,1764285034630,-500.0,0.00019178,2]
[394998994,1764285034640,-161.00514688,0.00019178,2]
[394998995,1764285034649,-500.0,0.00019178,2]
[394998996,1764285034658,-500.0,0.00019178,2]
[394998997,1764285034733,-500.0,0.00019178,2]
[394998998,1764285034742,-500.0,0.00019178,2]
[394998999,1764285034751,-500.0,0.00019178,2]
[394999000,1764285034760,-500.0,0.00019178,2]
[394999001,1764285034769,-500.0,0.00019178,2]
[394999002,1764285034778,-500.0,0.00019178,2]
[394999003,1764285034787,-500.0,0.00019178,2]
[394999004,1764285034796,-500.0,0.00019178,2]
[394999005,1764285034805,-500.0,0.00019178,2]
[394999006,1764285034814,-523.7,0.00019178,2]
[394999007,1764285034823,-500.0,0.00019178,2]
[394999008,1764285034832,-500.0,0.00019178,2]
[394999009,1764285034842,-554.26,0.00019178,2]
[394999010,1764285034851,-500.0,0.00019178,2]
[394999011,1764285034860,-500.0,0.00019178,2]
[394999012,1764285034870,-500.0,0.00019178,2]
[394999013,1764285034879,-500.0,0.00019178,2]
[394999014,1764285034888,-1384.72,0.00019178,2]
[394999015,1764285034897,-662.98,0.00019178,2]
[394999016,1764285034909,-770.22,0.00019178,2]
[394999017,1764285034920,-500.0,0.00019178,2]
[394999018,1764285034929,-500.0,0.00019178,2]
[394999019,1764285034939,-500.0,0.00019178,2]
[394999020,1764285034948,-500.0,0.00019178,2]
[394999021,1764285034959,-763.79,0.00019178,2]
[394999022,1764285034968,-500.0,0.00019178,2]
[394999023,1764285034978,-1063.78,0.00019178,2]
[394999024,1764285034988,-500.0,0.00019178,2]
[394999025,1764285034998,-169.534647,0.00019178,2]
[394999026,1764285035007,-500.0,0.00019178,2]
[394999027,1764285035016,-659.67,0.00019178,2]
[394999028,1764285035024,-500.0,0.00019178,2]
[394999029,1764285035033,-500.0,0.00019178,2]
[394999030,1764285035043,-500.0,0.00019178,2]
[394999031,1764285035054,-500.0,0.00019178,2]
[394999032,1764285035064,-504.94379512,0.00019178,2]
[394999033,1764285035074,-500.0,0.00019178,2]
[394999034,1764285035084,-500.0,0.00019178,2]
[394999035,1764285035094,-500.0,0.00019178,2]
[394999036,1764285035109,-500.0,0.00019178,2]
[394999037,1764285035119,-500.0,0.00019178,2]
[394999038,1764285035128,-862.4,0.00019178,2]
[394999039,1764285035138,-414.6622922,0.00019178,2]
[394999040,1764285035148,-500.0,0.00019178,2]
[394999041,1764285035157,-552.48448474,0.00019178,2]
[394999042,1764285035166,-500.0,0.00019178,2]
[394999043,1764285035176,-500.0,0.00019178,2]
[394999044,1764285035187,-500.0,0.00019178,2]
[394999045,1764285035197,-500.0,0.00019178,2]
[394999046,1764285035207,-602.65,0.00019178,2]
[394999047,1764285035216,-500.0,0.00019178,2]
[394999048,1764285035226,-500.0,0.00019178,2]
[394999049,1764285035235,-826.81,0.00019178,2]
[394999050,1764285035244,-598.89,0.00019178,2]
[394999051,1764285035253,-500.0,0.00019178,2]
[394999052,1764285035261,-955.78,0.00019178,2]
[394999053,1764285035270,-550.98,0.00019178,2]
[394999054,1764285035283,-501.59659881,0.00019178,2]
[394999055,1764285035296,-163.89104692,0.00019178,2]
[394999056,1764285035307,-1426.02,0.00019178,2]
[394999057,1764285035317,-585.81,0.00019178,2]
[394999058,1764285035327,-500.0,0.00019178,2]
[394999059,1764285035336,-511.7498743,0.00019178,2]
[394999060,1764285035345,-500.0,0.00019178,2]
[394999061,1764285035354,-500.0,0.00019178,2]
[394999062,1764285035364,-500.0,0.00019178,2]
[394999063,1764285035373,-551.90624121,0.00019178,2]
[394999064,1764285035382,-500.0,0.00019178,2]
[394999065,1764285035391,-500.0,0.00019178,2]
[394999066,1764285035400,-500.0,0.00019178,2]
[394999067,1764285035410,-711.29,0.00019178,2]
[394999068,1764285035419,-500.0,0.00019178,2]
[394999069,1764285035428,-501.6703262,0.00019178,2]
[394999070,1764285035437,-381.00234453,0.00019178,2]
[394999071,1764285035447,-500.0,0.00019178,2]
[394999072,1764285035456,-500.0,0.00019178,2]
[394999073,1764285035465,-503.40192501,0.00019178,2]
[394999074,1764285035474,-1080.24,0.00019178,2]
[394999075,1764285035483,-706.43,0.00019178,2]
[394999076,1764285035492,-500.0,0.00019178,2]
[394999077,1764285035502,-500.0,0.00019178,2]
[394999078,1764285035511,-519.6,0.00019178,2]
[394999079,1764285035520,-1228.45,0.00019178,2]
[394999080,1764285035529,-500.0,0.00019178,2]
[394999081,1764285035539,-418.14771001,0.00019178,2]
[394999082,1764285035548,-536.72,0.00019178,2]
[394999083,1764285035557,-500.0,0.00019178,2]
[394999084,1764285035566,-500.0,0.00019178,2]
[394999085,1764285035576,-500.0,0.00019178,2]
[394999086,1764285035585,-500.0,0.00019178,2]
[394999087,1764285035594,-2807.73,0.00019178,2]
[394999088,1764285035604,-500.0,0.00019178,2]
[394999089,1764285035614,-500.0,0.00019178,2]
[394999090,1764285035623,-500.0,0.00019178,2]
[394999091,1764285035632,-1208.89,0.00019178,2]
[394999092,1764285035642,-500.0,0.00019178,2]
[394999093,1764285035652,-1421.64,0.00019178,2]
[394999094,1764285035661,-500.0,0.00019178,2]
[394999095,1764285035670,-500.0,0.00019178,2]
[394999096,1764285035679,-500.0,0.00019178,2]
[394999097,1764285035688,-500.0,0.00019178,2]
[394999098,1764285035697,-500.0,0.00019178,2]
[394999099,1764285035707,-500.0,0.00019178,2]
[394999100,1764285035716,-500.0,0.00019178,2]
[394999101,1764285035725,-500.93316326,0.00019178,2]
[394999102,1764285035734,-500.0,0.00019178,2]
[394999103,1764285035743,-459.12141199,0.00019178,2]
[394999104,1764285035752,-500.0,0.00019178,2]
[394999105,1764285035761,-563.33,0.00019178,2]
[394999106,1764285035770,-500.0,0.00019178,2]
[394999107,1764285035779,-500.0,0.00019178,2]
[394999108,1764285035788,-500.0,0.00019178,2]
[394999109,1764285035797,-1855.37,0.00019178,2]
[394999110,1764285035806,-241.82754523,0.00019178,2]
[394999111,1764285035815,-500.0,0.00019178,2]
[394999112,1764285035824,-500.0,0.00019178,2]
[394999113,1764285035835,-501.57618334,0.00019178,2]
[394999114,1764285035843,-531.04,0.00019178,2]
[394999115,1764285035853,-649.43,0.00019178,2]
[394999116,1764285035861,-500.0,0.00019178,2]
[394999117,1764285035871,-500.0,0.00019178,2]
[394999118,1764285035881,-500.0,0.00019178,2]
[394999119,1764285035891,-500.0,0.00019178,2]
[394999120,1764285035902,-500.0,0.00019178,2]
[394999121,1764285035911,-500.0,0.00019178,2]
[394999122,1764285035920,-500.0,0.00019178,2]
[394999123,1764285035931,-1254.27,0.00019178,2]
[394999124,1764285035940,-500.0,0.00019178,2]
[394999125,1764285035950,-693.91,0.00019178,2]
[394999126,1764285035960,-500.0,0.00019178,2]
[394999127,1764285035970,-1362.4,0.00019178,2]
[394999128,1764285035979,-500.0,0.00019178,2]
[394999129,1764285035988,-500.0,0.00019178,2]
[394999130,1764285035997,-298.0405304,0.00019178,2]
[394999131,1764285036006,-927.62,0.00019178,2]
[394999132,1764285036015,-500.0,0.00019178,2]
[394999133,1764285036024,-500.0,0.00019178,2]
[394999134,1764285036033,-500.0,0.00019178,2]
[394999135,1764285036042,-949.72,0.00019178,2]
[394999136,1764285036051,-695.05,0.00019178,2]
[394999137,1764285036060,-500.0,0.00019178,2]
[394999138,1764285036068,-538.82,0.00019178,2]
[394999139,1764285036077,-500.0,0.00019178,2]
[394999140,1764285036086,-666.64,0.00019178,2]
[394999141,1764285036097,-1232.3,0.00019178,2]
[394999142,1764285036110,-500.0,0.00019178,2]
[394999143,1764285036120,-500.0,0.00019178,2]
[394999144,1764285036129,-500.0,0.00019178,2]
[394999145,1764285036139,-1598.0,0.00019178,2]
[394999146,1764285036150,-905.81,0.00019178,2]
[394999147,1764285036159,-657.71,0.00019178,2]
[394999148,1764285036168,-500.0,0.00019178,2]
[394999149,1764285036177,-2506.8,0.00019178,2]
[394999150,1764285036186,-833.17,0.00019178,2]
[394999151,1764285036195,-537.94175157,0.00019178,2]
[394999152,1764285036203,-500.0,0.00019178,2]
[394999153,1764285036212,-500.0,0.00019178,2]
[394999154,1764285036221,-500.50083028,0.00019178,2]
[394999155,1764285036230,-3926.72,0.00019178,2]
[394999156,1764285036239,-500.0,0.00019178,2]
[394999157,1764285036248,-500.59040077,0.00019178,2]
[394999158,1764285036257,-925.23,0.00019178,2]
[394999159,1764285036267,-1294.95,0.00019178,2]
[394999160,1764285036276,-500.0,0.00019178,2]
[394999161,1764285036285,-500.0,0.00019178,2]
[394999162,1764285036294,-500.0,0.00019178,2]
[394999163,1764285036303,-709.34,0.00019178,2]
[394999164,1764285036312,-500.0,0.00019178,2]
[394999165,1764285036322,-500.0,0.00019178,2]
[394999166,1764285036333,-500.0,0.00019178,2]
[394999167,1764285036342,-589.44,0.00019178,2]
[394999168,1764285036351,-1310.2,0.00019178,2]
[394999169,1764285036360,-618.14,0.00019178,2]
[394999170,1764285036369,-460.4,0.00019178,2]
[394999171,1764285036378,-500.0,0.00019178,2]
[394999172,1764285036388,-899.02,0.00019178,2]
[394999173,1764285036397,-500.0,0.00019178,2]
[394999174,1764285036406,-500.0,0.00019178,2]
[394999175,1764285036415,-500.52279166,0.00019178,2]
[394999176,1764285036424,-628.13035308,0.00019178,2]
[394999177,1764285036433,-500.0,0.00019178,2]
[394999178,1764285036443,-1000.0,0.00019178,2]
[394999179,1764285036452,-500.0,0.00019178,2]
[394999180,1764285036461,-500.0,0.00019178,2]
[394999181,1764285036470,-1211.05,0.00019178,2]
[394999182,1764285036479,-500.0,0.00019178,2]
[394999183,1764285036489,-500.0,0.00019178,2]
[394999184,1764285036498,-1216.55,0.00019178,2]
[394999185,1764285036506,-500.0,0.00019178,2]
[394999186,1764285036515,-927.3,0.00019178,2]
[394999187,1764285036524,-500.0,0.00019178,2]
[394999188,1764285036533,-500.0,0.00019178,2]
[394999189,1764285036542,-500.0,0.00019178,2]
[394999190,1764285036551,-500.0,0.00019178,2]
[394999191,1764285036560,-433.59975297,0.00019178,2]
[394999192,1764285036569,-500.0,0.00019178,2]
[394999193,1764285036578,-500.0,0.00019178,2]
[394999194,1764285036587,-500.0,0.00019178,2]
[394999195,1764285036595,-500.0,0.00019178,2]
[394999196,1764285036605,-516.14,0.00019178,2]
[394999197,1764285036614,-544.23,0.00019178,2]
[394999198,1764285036623,-2438.97,0.00019178,2]
[394999199,1764285036632,-500.0,0.00019178,2]
[394999200,1764285036641,-500.0,0.00019178,2]
[394999201,1764285036650,-500.0,0.00019178,2]
[394999202,1764285036659,-500.0,0.00019178,2]
[394999203,1764285036668,-500.0,0.00019178,2]
[394999204,1764285036677,-500.0,0.00019178,2]
[394999205,1764285036686,-500.0,0.00019178,2]
[394999206,1764285036695,-500.0,0.00019178,2]
[394999207,1764285036703,-522.7,0.00019178,2]
[394999208,1764285036713,-970.64,0.00019178,2]
[394999209,1764285036723,-500.0,0.00019178,2]
[394999210,1764285036734,-569.18,0.00019178,2]
[394999211,1764285036743,-500.0,0.00019178,2]
[394999212,1764285036752,-1159.34,0.00019178,2]
[394999213,1764285036761,-500.0,0.00019178,2]
[394999214,1764285036771,-500.0,0.00019178,2]
[394999215,1764285036780,-500.0,0.00019178,2]
[394999216,1764285036792,-913.96,0.00019178,2]
[394999217,1764285036801,-500.0,0.00019178,2]
[394999218,1764285036811,-500.0,0.00019178,2]
[394999219,1764285036820,-500.0,0.00019178,2]
[394999220,1764285036832,-500.0,0.00019178,2]
[394999221,1764285036843,-533.44,0.00019178,2]
[394999222,1764285036852,-1603.01,0.00019178,2]
[394999223,1764285036862,-500.0,0.00019178,2]
[394999224,1764285036871,-1056.99,0.00019178,2]
[394999225,1764285036880,-500.0,0.00019178,2]
[394999226,1764285036889,-500.0,0.00019178,2]
[394999227,1764285036899,-500.0,0.00019178,2]
[394999228,1764285036909,-500.0,0.00019178,2]
[394999229,1764285036919,-500.0,0.00019178,2]
[394999230,1764285036928,-4038.82,0.00019178,2]
[394999231,1764285036937,-500.0,0.00019178,2]
[394999232,1764285036946,-500.0,0.00019178,2]
[394999233,1764285036955,-440.13878453,0.00019178,2]
[394999234,1764285036963,-799.72,0.00019178,2]
[394999235,1764285036972,-1034.15,0.00019178,2]
[394999236,1764285036981,-151.11996222,0.00019178,2]
[394999237,1764285036990,-320.85232617,0.00019178,2]
[394999238,1764285036999,-500.0,0.00019178,2]
[394999239,1764285037008,-500.0,0.00019178,2]
[394999240,1764285037018,-500.0,0.00019178,2]
[394999241,1764285037027,-500.0,0.00019178,2]
[394999242,1764285037037,-500.0,0.00019178,2]
[394999243,1764285037047,-500.0,0.00019178,2]
[394999244,1764285037057,-500.0,0.00019178,2]
[394999245,1764285037066,-500.0,0.00019178,2]
[394999246,1764285037075,-500.0,0.00019178,2]
[394999247,1764285037084,-500.0,0.00019178,2]
[394999248,1764285037096,-500.0,0.00019178,2]
[394999249,1764285037111,-500.0,0.00019178,2]
[394999250,1764285037119,-675.15,0.00019178,2]
[394999251,1764285037128,-500.0,0.00019178,2]
[394999252,1764285037138,-1136.99,0.00019178,2]
[394999253,1764285037149,-500.0,0.00019178,2]
[394999254,1764285037158,-500.0,0.00019178,2]
[394999255,1764285037169,-512.42761398,0.00019178,2]
[394999256,1764285037180,-500.0,0.00019178,2]
[394999257,1764285037190,-500.0,0.00019178,2]
[394999258,1764285037199,-500.0,0.00019178,2]
[394999259,1764285037208,-500.0,0.00019178,2]
[394999260,1764285037217,-954.71,0.00019178,2]
[394999261,1764285037226,-500.0,0.00019178,2]
[394999262,1764285037235,-500.0,0.00019178,2]
[394999263,1764285037244,-500.0,0.00019178,2]
[394999264,1764285037253,-500.0,0.00019178,2]
[394999265,1764285037262,-959.65,0.00019178,2]
[394999266,1764285037271,-502.57,0.00019178,2]
[394999267,1764285037280,-1216.03,0.00019178,2]
[394999268,1764285037289,-743.63,0.00019178,2]
[394999269,1764285037299,-1196.46,0.00019178,2]
[394999270,1764285037309,-500.0,0.00019178,2]
[394999271,1764285037318,-1402.8,0.00019178,2]
[394999272,1764285037328,-500.0,0.00019178,2]
[394999273,1764285037337,-630.28933602,0.00019178,2]
[394999274,1764285037345,-500.0,0.00019178,2]
[394999275,1764285037354,-500.0,0.00019178,2]
[394999276,1764285037363,-500.0,0.00019178,2]
[394999277,1764285037374,-500.0,0.00019178,2]
[394999278,1764285037383,-500.0,0.00019178,2]
[394999279,1764285037392,-596.84,0.00019178,2]
[394999280,1764285037401,-500.0,0.00019178,2]
[394999281,1764285037411,-500.0,0.00019178,2]
[394999282,1764285037421,-1115.34,0.00019178,2]
[394999283,1764285037430,-500.0,0.00019178,2]
[394999284,1764285037440,-500.0,0.00019178,2]
[394999285,1764285037450,-1233.23,0.00019178,2]
[394999286,1764285037459,-500.0,0.00019178,2]
[394999287,1764285037469,-500.0,0.00019178,2]
[394999288,1764285037478,-500.0,0.00019178,2]
[394999289,1764285037487,-682.52,0.00019178,2]
[394999291,1764285037497,-500.0,0.00019178,2]
[394999293,1764285037508,-500.0,0.00019178,2]
[394999294,1764285037518,-1317.36,0.00019178,2]
[394999295,1764285037527,-500.0,0.00019178,2]
[394999297,1764285037537,-2308.48,0.00019178,2]
[394999299,1764285037546,-500.0,0.00019178,2]
[394999300,1764285037556,-1230.86,0.00019178,2]
[394999301,1764285037566,-500.0,0.00019178,2]
[394999302,1764285037576,-500.0,0.00019178,2]
[394999303,1764285037585,-500.0,0.00019178,2]
[394999304,1764285037594,-500.0,0.00019178,2]
[394999305,1764285037603,-461.32397371,0.00019178,2]
[394999306,1764285037613,-500.0,0.00019178,2]
[394999307,1764285037624,-500.0,0.00019178,2]
[394999308,1764285037633,-779.55,0.00019178,2]
[394999309,1764285037643,-351.61804159,0.00019178,2]
[394999310,1764285037652,-584.24,0.00019178,2]
[394999311,1764285037662,-500.0,0.00019178,2]
[394999312,1764285037671,-500.59719468,0.00019178,2]
[394999313,1764285037680,-1755.99,0.00019178,2]
[394999314,1764285037690,-3886.56,0.00019178,2]
[394999315,1764285037699,-500.0,0.00019178,2]
[394999316,1764285037710,-613.13295096,0.00019178,2]
[394999317,1764285037723,-500.0,0.00019178,2]
[394999318,1764285037732,-500.0,0.00019178,2]
[394999319,1764285037741,-1076.62,0.00019178,2]
[394999320,1764285037750,-500.0,0.00019178,2]
[394999321,1764285037759,-500.0,0.00019178,2]
[394999322,1764285037768,-1813.98,0.00019178,2]
[394999323,1764285037777,-500.0,0.00019178,2]
[394999324,1764285037786,-1047.36,0.00019178,2]
[394999325,1764285037794,-500.0,0.00019178,2]
[394999326,1764285037803,-715.61,0.00019178,2]
[394999327,1764285037812,-500.0,0.00019178,2]
[394999328,1764285037822,-1507.08,0.00019178,2]
[394999329,1764285037831,-500.0,0.00019178,2]
[394999330,1764285037840,-500.0,0.00019178,2]
[394999331,1764285037849,-500.0,0.00019178,2]
[394999332,1764285037858,-504.30763609,0.00019178,2]
[394999333,1764285037867,-500.0,0.00019178,2]
[394999334,1764285037876,-500.0,0.00019178,2]
[394999335,1764285037885,-560.09667461,0.00019178,2]
[394999336,1764285037894,-500.0,0.00019178,2]
[394999337,1764285037903,-500.0,0.00019178,2]
[394999338,1764285037919,-500.0,0.00019178,2]
[394999339,1764285037929,-500.0,0.00019178,2]
[394999340,1764285037939,-1355.5,0.00019178,2]
[394999341,1764285037948,-500.0,0.00019178,2]
[394999342,1764285037956,-500.0,0.00019178,2]
[394999343,1764285037965,-500.0,0.00019178,2]
[394999344,1764285037975,-500.0,0.00019178,2]
[394999345,1764285037983,-500.0,0.00019178,2]
[394999346,1764285037992,-500.0,0.00019178,2]
[394999347,1764285038001,-500.0,0.00019178,2]
[394999348,1764285038010,-500.0,0.00019178,2]
[394999349,1764285038020,-500.0,0.00019178,2]
[394999350,1764285038029,-2334.42,0.00019178,2]
[394999351,1764285038038,-1159.79,0.00019178,2]
[394999352,1764285038047,-500.0,0.00019178,2]
[394999353,1764285038057,-500.0,0.00019178,2]
[394999354,1764285038066,-500.0,0.00019178,2]
[394999355,1764285038075,-634.01,0.00019178,2]
[394999356,1764285038084,-500.0,0.00019178,2]
[394999357,1764285038094,-500.44864542,0.00019178,2]
[394999358,1764285038107,-948.67,0.00019178,2]
[394999359,1764285038117,-510.14,0.00019178,2]
[394999360,1764285038127,-1588.27,0.00019178,2]
[394999361,1764285038136,-500.0,0.00019178,2]
[394999362,1764285038145,-264.75528247,0.00019178,2]
[394999363,1764285038154,-500.0,0.00019178,2]
[394999364,1764285038163,-500.0,0.00019178,2]
[394999365,1764285038172,-3124.52,0.00019178,2]
[394999366,1764285038181,-926.95,0.00019178,2]
[394999367,1764285038190,-507.7131304,0.00019178,2]
[394999368,1764285038199,-500.0,0.00019178,2]
[394999369,1764285038209,-500.0,0.00019178,2]
[394999370,1764285038218,-691.78,0.00019178,2]
[394999371,1764285038228,-500.0,0.00019178,2]
[394999372,1764285038236,-500.0,0.00019178,2]
[394999373,1764285038246,-500.0,0.00019178,2]
[394999374,1764285038255,-647.5477141,0.00019178,2]
[394999375,1764285038264,-500.0,0.00019178,2]
[394999376,1764285038273,-500.0,0.00019178,2]
[394999377,1764285038282,-500.0,0.00019178,2]
[394999378,1764285038291,-500.0,0.00019178,2]
[394999379,1764285038301,-500.0,0.00019178,2]
[394999380,1764285038310,-500.0,0.00019178,2]
[394999381,1764285038319,-500.0,0.00019178,2]
[394999382,1764285038328,-510.37,0.00019178,2]
[394999383,1764285038337,-500.0,0.00019178,2]
[394999384,1764285038346,-500.0,0.00019178,2]
[394999385,1764285038355,-500.0,0.00019178,2]
[394999386,1764285038364,-500.0,0.00019178,2]
[394999387,1764285038374,-500.0,0.00019178,2]
[394999388,1764285038383,-500.0,0.00019178,2]